bitfinex-derivatives/quotes_BTCF0:USTF0_20250709
["timestamp","ask_amount","ask_price","bid_price","bid_amount"]
[1752034628658,0.3547367,108460.0,108450.0,1.26921274]
[1752034628963,0.60730864,108460.0,108450.0,1.26921274]
[1752034629452,0.3389767,108460.0,108450.0,1.26921274]
[1752034629653,0.3389767,108460.0,108450.0,1.66151274]
[1752034630953,0.3389767,108460.0,108450.0,1.6476237]
[1752034631360,0.3389767,108460.0,108450.0,1.56466953]
[1752034631757,0.3389767,108460.0,108450.0,1.6751481]
[1752034631957,0.3389767,108460.0,108450.0,1.67514444]
[1752034633559,0.3547367,108460.0,108450.0,1.67514444]
[1752034634665,0.3547367,108460.0,108450.0,1.6751444]
[1752034636365,0.3547367,108460.0,108450.0,1.64744365]
[1752034637568,0.3547367,108460.0,108450.0,1.63303142]
[1752034637763,0.3547367,108460.0,108450.0,1.64744365]
[1752034638165,0.2775767,108460.0,108450.0,1.64744365]
[1752034638866,0.3082767,108460.0,108450.0,1.64744365]
[1752034639263,0.3082767,108460.0,108450.0,1.39487171]
[1752034639264,0.3241667,108460.0,108450.0,1.39487171]
[1752034639468,1.24373058,108460.0,108450.0,0.11940191]
[1752034639664,1.24373058,108460.0,108450.0,0.10189418]
[1752034639864,1.22784058,108460.0,108450.0,0.169002]
[1752034640064,1.22784058,108460.0,108450.0,0.12761036]
[1752034640663,1.22784058,108460.0,108450.0,0.07243309]
[1752034640967,0.1843899,108450.0,108440.0,0.04138618]
[1752034641158,1.05562378,108450.0,108440.0,0.04138618]
[1752034641970,1.05662378,108450.0,108440.0,0.04438618]
[1752034642272,1.05762378,108450.0,108440.0,0.04738618]
[1752034642867,1.68498378,108450.0,108440.0,0.04738618]
[1752034643375,1.69181378,108450.0,108440.0,0.04738618]
[1752034644174,1.72401378,108450.0,108440.0,0.04738618]
[1752034645470,1.47401378,108450.0,108440.0,0.04738618]
[1752034645673,1.77401378,108450.0,108440.0,0.04738618]
[1752034645874,1.52144184,108450.0,108440.0,0.04738618]
[1752034646074,1.23144184,108450.0,108440.0,0.04738618]
[1752034646274,1.53144184,108450.0,108440.0,0.04738618]
[1752034647174,1.50144184,108450.0,108440.0,0.04738618]
[1752034649386,1.50144184,108450.0,108440.0,0.23179318]
[1752034650790,1.50144184,108450.0,108440.0,0.28697045]
[1752034652988,1.50144184,108450.0,108440.0,0.31533093]
[1752034653491,1.50144184,108450.0,108440.0,0.13092393]
[1752034655891,1.23144184,108450.0,108440.0,0.13092393]
[1752034656088,1.50144184,108450.0,108440.0,0.13092393]
[1752034661490,1.50144184,108450.0,108440.0,0.13092371]
[1752034664392,1.50144184,108450.0,108440.0,0.08953753]
[1752034665090,1.51107199,108450.0,108440.0,0.08953753]
[1752034665296,1.51107199,108450.0,108440.0,0.17231535]
[1752034667191,1.76364393,108450.0,108440.0,0.17231535]
[1752034667794,1.48364393,108450.0,108440.0,0.17231535]
[1752034667991,1.77364393,108450.0,108440.0,0.17231535]
[1752034668498,1.76401378,108450.0,108440.0,0.17231535]
[1752034669201,1.76401378,108450.0,108440.0,0.11713808]
[1752034670000,1.77364,108450.0,108440.0,0.11713808]
[1752034672299,1.77364,108450.0,108440.0,0.11715455]
[1752034674896,1.76401378,108450.0,108440.0,0.11715455]
[1752034680006,1.77364687,108450.0,108440.0,0.11715455]
[1752034683000,1.76401378,108450.0,108440.0,0.11715455]
[1752034683408,1.51144184,108450.0,108440.0,0.11715455]
[1752034684509,1.52104174,108450.0,108440.0,0.11715455]
[1752034686811,1.77361368,108450.0,108440.0,0.11715455]
[1752034687511,1.76401378,108450.0,108440.0,0.11715455]
[1752034694508,1.51144184,108450.0,108440.0,0.11715455]
[1752034698818,1.51144184,108450.0,108440.0,0.03437673]
[1752034708427,1.48872184,108450.0,108440.0,0.03437673]
[1752034710426,1.51299184,108450.0,108440.0,0.03437673]
[1752034710627,1.2604199,108450.0,108440.0,0.03437673]
[1752034710823,1.51299184,108450.0,108440.0,0.03437673]
[1752034711427,1.51299184,108450.0,108440.0,0.03437685]
[1752034711628,1.2604199,108450.0,108440.0,0.03437685]
[1752034711828,1.51299184,108450.0,108440.0,0.03437685]
[1752034712127,1.2604199,108450.0,108440.0,0.03437685]
[1752034712328,1.51299184,108450.0,108440.0,0.03437685]
[1752034714330,1.51299184,108450.0,108440.0,0.03438422]
[1752034716133,1.51299184,108450.0,108440.0,0.01996802]
[1752034716326,1.51299184,108450.0,108440.0,0.03438422]
[1752034720637,1.51299184,108450.0,108440.0,0.11742103]
[1752034722937,1.51299184,108450.0,108440.0,0.11742102]
[1752034728748,1.76556378,108450.0,108440.0,0.11742102]
[1752034733047,0.184407,108440.0,108430.0,0.11047857]
[1752034733255,0.184407,108440.0,108420.0,0.12969357]
[1752034733256,0.184424,108430.0,108420.0,0.12969357]
[1752034733451,1.49390594,108430.0,108420.0,0.14969357]
[1752034733648,1.51685594,108430.0,108420.0,0.12969357]
[1752034734454,1.23685594,108430.0,108420.0,0.12969357]
[1752034734845,1.23785594,108430.0,108420.0,0.13169357]
[1752034735450,0.61145594,108430.0,108420.0,0.58479651]
[1752034735651,1.23785594,108430.0,108420.0,0.87066845]
[1752034735954,1.20655594,108430.0,108420.0,0.90156845]
[1752034736658,1.20655594,108430.0,108420.0,0.64899651]
[1752034738458,1.20755594,108430.0,108420.0,0.64999651]
[1752034738859,0.954984,108430.0,108420.0,0.64999651]
[1752034739060,1.20755594,108430.0,108420.0,0.64999651]
[1752034740761,1.20759594,108430.0,108420.0,0.64999651]
[1752034742158,0.955024,108430.0,108420.0,0.64999651]
[1752034742358,1.20759594,108430.0,108420.0,0.64999651]
[1752034744158,1.20759594,108430.0,108420.0,0.90256845]
[1752034744355,1.20759594,108430.0,108420.0,0.64999651]
[1752034745065,1.20759594,108430.0,108420.0,0.67824721]
[1752034745765,0.58115594,108430.0,108420.0,0.67824721]
[1752034746766,0.328584,108430.0,108420.0,0.67824721]
[1752034746967,0.58115594,108430.0,108420.0,0.93081915]
[1752034747169,0.55820594,108430.0,108420.0,0.93081915]
[1752034747364,0.305634,108430.0,108420.0,0.93081915]
[1752034747560,0.55820594,108430.0,108420.0,0.93081915]
[1752034747760,0.58115594,108430.0,108420.0,0.93081915]
[1752034750369,0.58115594,108430.0,108420.0,0.67824721]
[1752034752279,0.58115594,108430.0,108420.0,0.42567527]
[1752034752578,0.58115594,108430.0,108420.0,0.67824721]
[1752034753784,0.58115594,108430.0,108420.0,0.67824473]
[1752034756488,0.51115594,108430.0,108420.0,0.67824473]
[1752034756783,0.54225594,108430.0,108420.0,0.67824473]
[1752034762089,0.54225594,108430.0,108420.0,0.67840473]
[1752034762280,0.54225594,108430.0,108420.0,0.42583279]
[1752034762484,0.54225594,108430.0,108420.0,0.63117724]
[1752034763084,0.54225594,108430.0,108420.0,0.64742724]
[1752034763291,0.54225594,108430.0,108420.0,0.63117724]
[1752034763479,0.54225594,108430.0,108420.0,0.64742724]
[1752034763789,0.54225594,108430.0,108420.0,0.63117724]
[1752034764388,0.54225594,108430.0,108420.0,0.64742724]
[1752034765795,0.289684,108430.0,108420.0,0.64742724]
[1752034765994,0.54225594,108430.0,108420.0,0.64742724]
[1752034771190,0.51115594,108430.0,108420.0,0.89999918]
[1752034771397,0.48820594,108430.0,108420.0,0.93029918]
[1752034773296,0.51238594,108430.0,108420.0,1.55673918]
[1752034773996,0.51238594,108430.0,108420.0,1.55672546]
[1752034774296,0.51238594,108430.0,108420.0,1.30415352]
[1752034774797,0.54398594,108430.0,108420.0,1.30415352]
[1752034775200,0.54398594,108430.0,108420.0,0.67771352]
[1752034775495,0.54398594,108430.0,108420.0,1.30415352]
[1752034776304,0.54398594,108430.0,108420.0,0.67771352]
[1752034776506,0.54398594,108430.0,108420.0,1.30415352]
[1752034777001,0.54398594,108430.0,108420.0,1.30415711]
[1752034777305,0.54398594,108430.0,108420.0,1.05158517]
[1752034777502,0.54398594,108430.0,108420.0,1.30415711]
[1752034778400,0.291414,108430.0,108420.0,1.30415711]
[1752034778602,0.54398594,108430.0,108420.0,1.30415711]
[1752034781305,0.54398594,108430.0,108420.0,0.67771711]
[1752034781506,0.54398594,108430.0,108420.0,1.30415711]
[1752034782100,0.291414,108430.0,108420.0,1.30415711]
[1752034782306,0.54398594,108430.0,108420.0,1.30415711]
[1752034783105,0.54398594,108430.0,108420.0,1.30414593]
[1752034783910,0.51980594,108430.0,108420.0,1.30414593]
[1752034786706,0.54397594,108430.0,108420.0,1.30414593]
[1752034788810,0.54397594,108430.0,108420.0,1.30412541]
[1752034792713,0.54397594,108430.0,108420.0,1.29039322]
[1752034792914,0.54397594,108430.0,108420.0,1.3041507]
[1752034793115,0.51980594,108430.0,108420.0,1.30425168]
[1752034797820,0.51980594,108430.0,108420.0,1.30425225]
[1752034800416,0.267234,108430.0,108420.0,1.30425225]
[1752034800620,0.002,108430.0,108420.0,1.58042284]
[1752034800820,0.186424,108430.0,108420.0,1.93042284]
[1752034801123,0.186424,108430.0,108420.0,1.95804249]
[1752034801318,0.186424,108430.0,108420.0,1.46994427]
[1752034802519,0.186424,108430.0,108420.0,1.58062168]
[1752034803221,0.186424,108430.0,108420.0,1.46994427]
[1752034803423,0.186424,108430.0,108420.0,1.5806151]
[1752034803625,0.186424,108430.0,108420.0,1.46994427]
[1752034804225,0.43899594,108430.0,108420.0,1.46994427]
[1752034805016,0.186424,108430.0,108420.0,1.58061037]
[1752034805723,0.186424,108430.0,108420.0,1.58051027]
[1752034808722,0.186424,108430.0,108420.0,1.07536639]
[1752034809022,0.186424,108430.0,108420.0,1.58051027]
[1752034809620,0.186424,108430.0,108420.0,1.54062027]
[1752034809822,0.186424,108430.0,108420.0,1.54986491]
[1752034810126,0.186424,108430.0,108420.0,1.56420984]
[1752034813226,0.186424,108430.0,108420.0,1.59164196]
[1752034814421,0.186424,108430.0,108420.0,1.59165194]
[1752034815628,0.186424,108430.0,108420.0,1.59165072]
[1752034816528,0.186424,108430.0,108420.0,1.60246316]
[1752034820434,0.186424,108430.0,108420.0,1.57882384]
[1752034821321,0.186424,108430.0,108420.0,1.53999908]
[1752034821525,0.186424,108430.0,108420.0,1.57888069]
[1752034822036,0.002,108430.0,108420.0,1.57888069]
[1752034822229,0.186424,108430.0,108420.0,1.68953886]
[1752034822536,0.186424,108430.0,108420.0,1.57432064]
[1752034827543,0.186424,108430.0,108420.0,1.06917676]
[1752034827739,0.186424,108430.0,108420.0,1.57432064]
[1752034829231,0.186424,108430.0,108420.0,1.5742994]
[1752034831241,0.002,108430.0,108420.0,1.46364123]
[1752034831437,0.1864239,108430.0,108420.0,1.97173945]
[1752034832033,0.1864239,108430.0,108420.0,1.60173945]
[1752034832237,0.1864239,108430.0,108420.0,1.60173925]
[1752034832435,0.1864239,108430.0,108420.0,0.97533925]
[1752034832638,0.1864239,108430.0,108420.0,1.61771925]
[1752034834641,0.1864239,108430.0,108420.0,0.99139925]
[1752034834841,0.1864239,108430.0,108420.0,1.61771925]
[1752034836142,0.1864239,108430.0,108420.0,0.99139925]
[1752034836343,0.1864239,108430.0,108420.0,1.61771925]
[1752034836542,0.2171239,108430.0,108420.0,1.61771925]
[1752034838048,0.2171239,108430.0,108420.0,1.61771791]
[1752034840944,0.2171239,108430.0,108420.0,1.61771776]
[1752034842041,0.2171239,108430.0,108420.0,1.60690547]
[1752034842245,0.2171239,108430.0,108420.0,1.61771776]
[1752034842847,0.2171239,108430.0,108420.0,1.72842565]
[1752034843047,0.2171239,108430.0,108420.0,1.59032743]
[1752034843942,0.2171239,108430.0,108420.0,1.59032747]
[1752034848551,0.2171239,108430.0,108420.0,1.47961958]
[1752034852060,0.2171239,108430.0,108420.0,1.59032747]
[1752034853355,0.48496584,108430.0,108420.0,0.37238359]
[1752034853557,0.48496584,108430.0,108420.0,1.25127553]
[1752034853749,0.51676584,108430.0,108420.0,1.25127553]
[1752034855762,0.51676584,108430.0,108420.0,1.25137645]
[1752034857467,0.51676584,108430.0,108420.0,1.27876678]
[1752034858464,0.2641939,108430.0,108420.0,1.14066856]
[1752034858665,0.51676584,108430.0,108420.0,1.2513607]
[1752034858865,0.51676584,108430.0,108420.0,1.50393264]
[1752034861065,0.51676584,108430.0,108420.0,1.50393344]
[1752034863870,0.91035584,108430.0,108420.0,1.2513615]
[1752034864070,0.54035584,108430.0,108420.0,1.2513615]
[1752034864468,0.2877839,108430.0,108420.0,1.2513615]
[1752034864663,0.51676584,108430.0,108420.0,1.2513615]
[1752034865068,0.51676584,108430.0,108420.0,1.50393344]
[1752034866269,0.51676584,108430.0,108420.0,1.5039267]
[1752034867668,0.51676584,108430.0,108420.0,0.62503476]
[1752034867869,0.51676584,108430.0,108420.0,1.25135476]
[1752034869785,0.51676584,108430.0,108420.0,0.99878282]
[1752034869968,0.51676584,108430.0,108420.0,1.25135476]
[1752034872068,0.51676584,108430.0,108420.0,1.23763054]
[1752034872272,0.51676584,108430.0,108420.0,1.25135224]
[1752034873276,0.51676584,108430.0,108420.0,0.9987803]
[1752034873474,0.54035584,108430.0,108420.0,1.25135224]
[1752034874175,0.54035584,108430.0,108420.0,0.9987803]
[1752034874474,0.54035584,108430.0,108420.0,1.25135224]
[1752034876577,0.2877839,108430.0,108420.0,1.25135224]
[1752034876775,0.54035584,108430.0,108420.0,1.25135224]
[1752034877980,0.54035584,108430.0,108420.0,1.25135302]
[1752034878279,0.51676584,108430.0,108420.0,1.25135302]
[1752034878575,0.54076584,108430.0,108420.0,1.25135302]
[1752034879083,0.51676584,108430.0,108420.0,1.25135302]
[1752034880581,0.85076584,108430.0,108420.0,0.18802008]
[1752034880878,0.85076584,108430.0,108420.0,0.99878118]
[1752034880879,0.86076584,108430.0,108420.0,0.99878118]
[1752034882082,0.86076584,108430.0,108420.0,0.88808904]
[1752034882278,0.86076584,108430.0,108420.0,0.99878118]
[1752034882780,0.86076584,108430.0,108420.0,0.88808904]
[1752034883288,0.86076584,108430.0,108420.0,0.99878118]
[1752034883776,0.86076584,108430.0,108420.0,0.99885113]
[1752034884280,0.86076584,108430.0,108420.0,0.88815899]
[1752034885479,0.86076584,108430.0,108420.0,1.14073093]
[1752034887882,0.86076584,108430.0,108420.0,0.99885113]
[1752034888082,0.86076584,108430.0,108420.0,1.25142307]
[1752034890484,0.85076584,108430.0,108420.0,1.25142307]
[1752034890787,0.54076584,108430.0,108420.0,1.25142307]
[1752034891087,0.86076584,108430.0,108420.0,1.25142307]
[1752034891274,0.86076584,108430.0,108420.0,0.99885113]
[1752034891681,0.62076584,108430.0,108420.0,0.99885113]
[1752034892295,0.62076584,108430.0,108420.0,0.97064219]
[1752034892486,0.62076584,108430.0,108420.0,0.99885418]
[1752034893987,0.62076584,108430.0,108420.0,1.25142612]
[1752034895386,0.54076584,108430.0,108420.0,1.25142612]
[1752034895585,0.88076584,108430.0,108420.0,1.25142612]
[1752034895885,0.54076584,108430.0,108420.0,1.25142612]
[1752034896073,0.54076584,108430.0,108420.0,1.25292468]
[1752034896889,0.86076584,108430.0,108420.0,1.25292468]
[1752034897188,0.86076584,108430.0,108420.0,1.25327466]
[1752034897991,0.86076584,108430.0,108420.0,1.25362464]
[1752034898193,0.86076584,108430.0,108420.0,1.25708554]
[1752034898585,0.61076584,108430.0,108420.0,1.25708554]
[1752034898992,0.61076584,108430.0,108420.0,1.25730343]
[1752034899195,0.92076584,108430.0,108420.0,1.25730343]
[1752034899801,0.62076584,108430.0,108420.0,1.25730343]
[1752034900392,0.86076584,108430.0,108420.0,1.25730343]
[1752034900693,0.61076584,108430.0,108420.0,1.25730343]
[1752034904493,0.54076584,108430.0,108420.0,1.25730343]
[1752034904802,0.90076584,108430.0,108420.0,1.00476306]
[1752034904989,0.90076584,108430.0,108420.0,1.257335]
[1752034905294,0.54076584,108430.0,108420.0,1.257335]
[1752034905595,0.90076584,108430.0,108420.0,1.257335]
[1752034906497,0.90076584,108430.0,108420.0,1.0728939]
[1752034906695,0.90076584,108430.0,108420.0,1.00476306]
[1752034907101,0.90076584,108430.0,108420.0,0.82032196]
[1752034908101,0.90076584,108430.0,108420.0,1.00476306]
[1752034908801,0.61076584,108430.0,108420.0,1.00476306]
[1752034909101,0.3581939,108430.0,108420.0,1.00476306]
[1752034909301,0.61076584,108430.0,108420.0,1.00476306]
[1752034909698,0.61076584,108430.0,108420.0,1.257335]
[1752034913205,0.61076584,108430.0,108420.0,1.25734017]
[1752034914008,0.61076584,108430.0,108420.0,1.25734045]
[1752034915310,0.61076584,108430.0,108420.0,1.00476851]
[1752034915598,0.61076584,108430.0,108420.0,1.23816269]
[1752034915805,0.61076584,108430.0,108420.0,1.25754728]
[1752034916005,0.61076584,108430.0,108420.0,1.2575476]
[1752034917399,0.61076584,108430.0,108420.0,1.2878476]
[1752034921108,0.55496584,108430.0,108420.0,1.2878476]
[1752034921300,0.55496584,108430.0,108420.0,1.3185476]
[1752034923613,0.3023939,108430.0,108420.0,1.3185476]
[1752034923909,0.55496584,108430.0,108420.0,1.3185476]
[1752034926612,0.55496584,108430.0,108420.0,1.31854737]
[1752034927508,0.3023939,108430.0,108420.0,1.31854737]
[1752034927707,0.55496584,108430.0,108420.0,1.31854737]
[1752034928910,0.3023939,108430.0,108420.0,1.31854737]
[1752034929110,0.55496584,108430.0,108420.0,1.57111931]
[1752034932511,0.55496584,108430.0,108420.0,1.57107522]
[1752034933402,0.3023939,108430.0,108420.0,1.57107522]
[1752034933608,0.2564239,108430.0,108420.0,1.59475522]
[1752034933817,0.50899584,108430.0,108420.0,1.59475522]
[1752034934118,0.2564239,108430.0,108420.0,1.59475522]
[1752034934416,0.2725339,108430.0,108420.0,1.59475522]
[1752034934615,0.2564239,108430.0,108420.0,1.59475522]
[1752034935020,0.50899584,108430.0,108420.0,0.96843522]
[1752034935217,0.45441584,108430.0,108420.0,1.15766218]
[1752034935418,0.45441584,108430.0,108420.0,0.82041024]
[1752034935419,0.80694584,108430.0,108420.0,0.82041024]
[1752034935620,0.86934584,108430.0,108420.0,0.82041024]
[1752034936011,0.86934584,108430.0,108420.0,0.19417024]
[1752034936012,0.79191778,108430.0,108420.0,0.19417024]
[1752034936213,0.79191778,108430.0,108420.0,0.82041024]
[1752034936214,0.91934584,108430.0,108420.0,0.82041024]
[1752034937819,0.91934584,108430.0,108420.0,0.82045024]
[1752034941029,0.91934584,108430.0,108420.0,0.82045058]
[1752034943328,0.84934584,108430.0,108420.0,0.82045058]
[1752034943726,0.84934584,108430.0,108420.0,0.80106599]
[1752034947934,0.84934584,108430.0,108420.0,0.80106667]
[1752034949639,0.84934584,108430.0,108420.0,0.79025308]
[1752034949835,0.84934584,108430.0,108420.0,0.80106667]
[1752034951338,0.84934584,108430.0,108420.0,0.98550777]
[1752034952938,0.86934584,108430.0,108420.0,0.98550777]
[1752034953740,0.86934584,108430.0,108420.0,0.95781554]
[1752034956044,0.86934584,108430.0,108420.0,0.77337444]
[1752034956345,0.86934584,108430.0,108420.0,0.95781554]
[1752034958040,0.6167739,108430.0,108420.0,0.95781554]
[1752034958246,0.86934584,108430.0,108420.0,0.95781554]
[1752034961250,0.86934584,108430.0,108420.0,0.95792155]
[1752034962150,0.86934584,108430.0,108420.0,0.77348045]
[1752034962342,0.86934584,108430.0,108420.0,0.80117268]
[1752034962747,0.86934584,108430.0,108420.0,0.77349411]
[1752034963151,0.86934584,108430.0,108420.0,0.95793521]
[1752034963648,0.86934584,108430.0,108420.0,1.21050715]
[1752034963948,0.86934584,108430.0,108420.0,1.19444715]
[1752034964448,0.86934584,108430.0,108420.0,1.01000605]
[1752034965338,0.86934584,108430.0,108420.0,0.92699248]
[1752034965548,0.86934584,108430.0,108420.0,0.94249248]
[1752034966051,0.86934584,108430.0,108420.0,0.94249778]
[1752034966250,0.86934584,108430.0,108420.0,0.97369778]
[1752034966550,0.86934584,108430.0,108420.0,1.08438992]
[1752034966750,0.86934584,108430.0,108420.0,1.25801743]
[1752034967349,0.83139584,108430.0,108420.0,1.24251743]
[1752034967551,0.87134584,108430.0,108420.0,1.24251743]
[1752034968953,0.87134584,108430.0,108420.0,0.80550439]
[1752034969147,0.87134584,108430.0,108420.0,0.82197439]
[1752034969552,0.87134584,108430.0,108420.0,1.00641549]
[1752034971058,0.87134584,108430.0,108420.0,1.00638856]
[1752034977557,0.6187739,108430.0,108420.0,1.00638856]
[1752034977857,0.87134584,108430.0,108420.0,1.00638856]
[1752034980457,0.83139584,108430.0,108420.0,0.98991856]
[1752034982563,0.87134584,108430.0,108420.0,1.00638856]
[1752034984667,0.87134584,108430.0,108420.0,0.98991856]
[1752034985054,0.87134584,108430.0,108420.0,1.00638856]
[1752034989482,0.87134584,108430.0,108420.0,1.00638851]
[1752034993083,0.87134584,108430.0,108420.0,0.82194741]
[1752034994087,0.87134584,108430.0,108420.0,1.00638841]
[1752034995186,0.87134584,108430.0,108420.0,0.99254831]
[1752034995388,0.87134584,108430.0,108420.0,1.00636474]
[1752034997188,0.87134584,108430.0,108420.0,0.8956726]
[1752034998089,0.87134584,108430.0,108420.0,0.88185617]
[1752034998281,0.87134584,108430.0,108420.0,0.89567249]
[1752034999980,1.49754584,108430.0,108420.0,0.89567249]
[1752035000682,1.49754584,108430.0,108420.0,0.71123149]
[1752035000884,1.49754584,108430.0,108420.0,0.89567259]
[1752035001691,1.49754584,108430.0,108420.0,0.71123149]
[1752035001998,1.49754584,108430.0,108420.0,0.08495149]
[1752035002490,1.49754584,108430.0,108420.0,0.26939249]
[1752035003694,1.2449739,108430.0,108420.0,0.26939249]
[1752035003992,1.49754584,108430.0,108420.0,0.26939249]
[1752035005995,1.49754584,108430.0,108420.0,0.08495149]
[1752035006593,1.49754584,108430.0,108420.0,0.1679939]
[1752035006793,1.49754584,108430.0,108420.0,0.16799431]
[1752035007092,1.49754584,108430.0,108420.0,0.0849519]
[1752035009095,1.49754584,108430.0,108420.0,0.19564404]
[1752035009695,1.49754584,108430.0,108420.0,0.195644]
[1752035023298,1.49754584,108430.0,108420.0,0.3800851]
[1752035026214,1.49754584,108430.0,108420.0,0.195644]
[1752035028005,1.49754584,108430.0,108420.0,0.164444]
[1752035033715,1.49754584,108430.0,108420.0,0.16445174]
[1752035035819,1.49754584,108430.0,108420.0,0.16445189]
[1752035037120,1.49754584,108430.0,108420.0,0.16445185]
[1752035040428,1.45759584,108430.0,108420.0,0.14798185]
[1752035042434,1.48026584,108430.0,108420.0,0.14798185]
[1752035046438,1.48026584,108430.0,108420.0,0.148]
[1752035047334,1.48026584,108430.0,108420.0,0.12035095]
[1752035049234,1.48026584,108430.0,108420.0,0.10593281]
[1752035049438,1.48026584,108430.0,108420.0,0.12035119]
[1752035052738,1.48026584,108430.0,108420.0,0.12035096]
[1752035056637,1.48026584,108430.0,108420.0,0.03730787]
[1752035059549,1.48026584,108430.0,108420.0,0.14800001]
[1752035060949,1.48026584,108430.0,108420.0,0.14800017]
[1752035061450,0.85406584,108430.0,108420.0,0.40057211]
[1752035061653,1.49612584,108430.0,108420.0,0.14800017]
[1752035061844,1.49612584,108430.0,108420.0,0.40057211]
[1752035065058,0.87012584,108430.0,108420.0,0.40057211]
[1752035065252,0.87012584,108430.0,108420.0,0.58501321]
[1752035065452,1.49612584,108430.0,108420.0,0.60028321]
[1752035065758,1.1424239,108430.0,108420.0,0.88315515]
[1752035065953,0.5164239,108430.0,108420.0,0.91625515]
[1752035066758,0.5324839,108430.0,108420.0,0.91625515]
[1752035070861,0.5324839,108430.0,108420.0,0.41111127]
[1752035071055,0.5324839,108430.0,108420.0,0.91625515]
[1752035071359,0.78505584,108430.0,108420.0,0.91625515]
[1752035072258,0.5324839,108430.0,108420.0,0.91625515]
[1752035072557,0.78505584,108430.0,108420.0,0.91621901]
[1752035075362,0.80756584,108430.0,108420.0,0.91621901]
[1752035075555,0.78505584,108430.0,108420.0,0.91621901]
[1752035078466,0.5324839,108430.0,108420.0,0.91621901]
[1752035080159,0.5549939,108430.0,108420.0,0.91621901]
[1752035081265,0.5324839,108430.0,108420.0,0.91621901]
[1752035083583,0.78505584,108430.0,108420.0,0.91621901]
[1752035084571,0.5324839,108430.0,108420.0,0.91621901]
[1752035087870,0.78505584,108430.0,108420.0,0.91621901]
[1752035090680,0.78505584,108430.0,108420.0,0.41107513]
[1752035090879,0.78505584,108430.0,108420.0,0.91621901]
[1752035092167,0.81595584,108430.0,108420.0,0.91621901]
[1752035092975,0.5633839,108430.0,108420.0,0.41107513]
[1752035093182,0.5879539,108430.0,108420.0,0.64837707]
[1752035093376,0.84052584,108430.0,108420.0,0.64837707]
[1752035093573,0.87182584,108430.0,108420.0,0.64837707]
[1752035093775,0.87182584,108430.0,108420.0,0.66371707]
[1752035093975,0.87182584,108430.0,108420.0,0.63047552]
[1752035094978,0.87182584,108430.0,108420.0,1.25635552]
[1752035095374,0.87182584,108430.0,108420.0,1.15647623]
[1752035095683,0.87182584,108430.0,108420.0,1.12617623]
[1752035095872,0.87182584,108430.0,108420.0,0.24772429]
[1752035096074,1.12439778,108430.0,108420.0,0.15865572]
[1752035096275,1.11142151,108430.0,108420.0,0.78453572]
[1752035096569,1.11142151,108430.0,108420.0,0.13096572]
[1752035097372,1.70486022,108430.0,108420.0,0.15014457]
[1752035097580,1.70486022,108430.0,108420.0,0.10328358]
[1752035098588,1.71439879,108430.0,108420.0,0.1034223]
[1752035098886,1.70486022,108430.0,108420.0,0.1034223]
[1752035100086,1.45228828,108430.0,108420.0,0.1034223]
[1752035100987,1.45228828,108430.0,108420.0,0.10342104]
[1752035101486,1.45228828,108430.0,108420.0,0.10343782]
[1752035101672,1.70486022,108430.0,108420.0,0.10343782]
[1752035101984,1.71401448,108430.0,108420.0,0.10343782]
[1752035102382,1.70536333,108430.0,108420.0,0.12264983]
[1752035102586,1.68930333,108430.0,108420.0,0.12264983]
[1752035104088,1.68930333,108430.0,108420.0,0.06730944]
[1752035104387,1.43673139,108430.0,108420.0,0.06730944]
[1752035105288,1.68930333,108430.0,108420.0,0.08957114]
[1752035106587,1.68930333,108430.0,108420.0,0.04809743]
[1752035107088,1.68930333,108430.0,108420.0,0.08956576]
[1752035107481,1.68930333,108430.0,108420.0,0.10343782]
[1752035108583,1.66473333,108430.0,108420.0,0.10343782]
[1752035108775,1.68930333,108430.0,108420.0,0.10343782]
[1752035109783,1.68930333,108430.0,108420.0,0.08901923]
[1752035109982,2.36283568,108430.0,108420.0,1e-08]
[1752035110185,0.1844411,108420.0,108410.0,1e-08]
[1752035110491,0.1844582,108410.0,108400.0,0.09097223]
[1752035110790,1.52858014,108410.0,108400.0,0.09097223]
[1752035112188,1.52958014,108410.0,108400.0,0.0099497]
[1752035113889,1.53158014,108410.0,108400.0,0.0109497]
[1752035116097,1.78415208,108410.0,108400.0,0.0109497]
[1752035116595,1.53158014,108410.0,108400.0,0.0109497]
[1752035117492,0.4011482,108410.0,108400.0,0.71709868]
[1752035117694,1.0754082,108410.0,108400.0,0.74829868]
[1752035117896,1.32798014,108410.0,108400.0,0.77919868]
[1752035118199,1.32798014,108410.0,108400.0,0.52662674]
[1752035118591,1.32798014,108410.0,108400.0,0.0586797]
[1752035118793,1.36008014,108410.0,108400.0,0.0109497]
[1752035118997,1.1075082,108410.0,108400.0,0.44799654]
[1752035119191,1.36008014,108410.0,108400.0,0.44799654]
[1752035119898,0.73412014,108410.0,108400.0,0.44799654]
[1752035120197,1.36032014,108410.0,108400.0,0.46452654]
[1752035120397,1.36032014,108410.0,108400.0,0.49762654]
[1752035121599,0.4815482,108410.0,108400.0,0.49762654]
[1752035121799,1.36068014,108410.0,108400.0,0.49762654]
[1752035121989,1.36068014,108410.0,108400.0,0.53650988]
[1752035126006,1.36068014,108410.0,108400.0,0.56730988]
[1752035126204,1.32858014,108410.0,108400.0,0.56730988]
[1752035126705,0.70202014,108410.0,108400.0,0.56730988]
[1752035126907,1.32854014,108410.0,108400.0,0.56730988]
[1752035127302,0.70202014,108410.0,108400.0,0.56730988]
[1752035127506,1.32854014,108410.0,108400.0,0.56730988]
[1752035129405,1.32854014,108410.0,108400.0,0.56730966]
[1752035129708,0.4494482,108410.0,108400.0,0.56730966]
[1752035129907,1.32850014,108410.0,108400.0,0.56730966]
[1752035130505,0.4339482,108410.0,108400.0,0.8198816]
[1752035130700,1.12300014,108410.0,108400.0,0.46585729]
[1752035130900,1.13850014,108410.0,108400.0,0.65033219]
[1752035131100,1.47850014,108410.0,108400.0,0.65033219]
[1752035132210,1.47850014,108410.0,108400.0,0.6502905]
[1752035132409,1.47850014,108410.0,108400.0,0.39771856]
[1752035132604,1.13850014,108410.0,108400.0,0.39771856]
[1752035132906,1.13850014,108410.0,108400.0,0.6502905]
[1752035133106,1.48850014,108410.0,108400.0,0.6502905]
[1752035133909,1.13850014,108410.0,108400.0,0.6502905]
[1752035135112,1.13850014,108410.0,108400.0,0.65032278]
[1752035136711,0.8859282,108410.0,108400.0,0.65032278]
[1752035136911,1.45850014,108410.0,108400.0,0.65032278]
[1752035139513,1.45850014,108410.0,108400.0,0.63379278]
[1752035139713,1.21850014,108410.0,108400.0,0.65032278]
[1752035139913,1.21850014,108410.0,108400.0,0.63379278]
[1752035140114,1.21850014,108410.0,108400.0,0.65032278]
[1752035140317,1.24910014,108410.0,108400.0,0.65032278]
[1752035140917,1.16910014,108410.0,108400.0,0.46584788]
[1752035141219,1.54910014,108410.0,108400.0,0.46584788]
[1752035143020,0.92262014,108410.0,108400.0,0.46584788]
[1752035143320,1.54934014,108410.0,108400.0,0.46584788]
[1752035143513,1.54934014,108410.0,108400.0,0.65032278]
[1752035143912,1.54934014,108410.0,108400.0,0.61952278]
[1752035145020,0.92262014,108410.0,108400.0,0.61952278]
[1752035145723,0.54262014,108410.0,108400.0,0.61952278]
[1752035146326,0.89262014,108410.0,108400.0,0.61952278]